Workbook

Sheet Cover
A1: This WORKBOOK contains tips and will calculate the percentages for you.
A2: Please read the instructions and start by listing names within the SAC Membership List Section.
A3: Enter data ONLY in the highlighted cells. If the cell is not highlighted, it will calculate for you.
A4: To navigate through the sections please use the tabs below.

Sheet SAC Membership Directions
A1: LCS School Advisory Council Membership
A2: General Directions
A4: Completing the SAC Membership Excel File
B5: Complete the "SAC Membership List" Sheet First!!
A6: This file has three sections: Instructional, SAC Membership List, and SAC Assurances. In Excel you can navigate through the sections by using the tabs at the bottom of the page.
A8: The SAC Membership and SAC Assurances sections have special features to help you complete this task.
A10: You will only be able to select and enter data in the highlighted cells.
A12: Other than individuals' names and numbers of students and SAC members, information is entered via drop down menus.
A14: Email the completed SAC Membership Excel file to sacminutes@leonschools.net
A16: The signed assurances form must be received by the deadline of September 27, 2019. Please submit this signed assurances form as a PDF so that the signature is visible.
A18: If a SAC member is designated as the "other", attach a request signed by the principal on school letterhead, that the School Board should appoint the person to the School Advisory Council. Provide the reason for the request. Bringing the SAC into racial and economic compliance are the acceptable reasons for asking the School Board to appoint a person to a SAC.
A20: Complete all the information for each SAC member.
A22: Each School Advisory Council must include a balanced group composed of the principal, teachers, parents, support staff, and students, and business/community representatives, including:
A23: The principal,
A24: A balanced number of teachers,
A25: At least one (1) non-instructional support person,
A26: At least four (4) parents not employed by the school,
A27: At least two (2) business/community representatives who are not school district staff other than the four parents names above,
A28: At least one (1) student at the High School, Vocational, and Adult levels (no elementary students are allowed to be SAC members), and
A29: 50% +1 of the membership who are not employed at the school DISTRICT. Students are not counted either way in making this determination. For students, enter N/A for "District Employee."
A31: Each School Advisory Council must meet the following criteria:
A32: All teachers, parents, students, and support persons must be elected members of your SAC.
A34: SAC members must be representative of the ethnic, racial, and socioeconomic background of the community served by the school. Signature of the assurance statement satisfies this requirement. The SAC must document attempts to recruit if such representation is out of compliance.

Sheet SAC Membership List
A1: Member | D1: School Advisory Council Membership | I1: Member | J1: Information
A2: Status | C2: First Name | D2: Last Name | E2: Group (Bus/Comm, Parent, Principal, Student, Teacher, Support Staff) | F2: Race (B, W, Other) | G2: DISTRICT Employee (Y/N) | H2: Elected (Y/N) | I2: In Compliance | J2: Complete | K2: Options | L2: (Select School Name) | N2: Bus/Comm | O2: Parent | P2: Principal | Q2: Student | R2: Support | S2: Teacher | T2: Other | U2: Black | V2: White | W2: Other
A3: Member | C3: Sue | D3: Rishell | E3: Principal | F3: White | G3: Yes | H3: No | I3: =OR(AND(E3="Parent",G3="No",H3="Yes"),AND(E3="Teacher",G3="Yes",H3="Yes"),AND(E3="Support",G3="Yes",H3="Yes"),AND(E3="Student",H3="Yes",G3="N/A",H3="Yes"),AND(E3="Bus/Comm",G3="No",H3="No"),AND(E3="Principal",G3="Yes",H3="No"),AND(E3="Other")) -> TRUE | J3: =AND(A3<>"",C3<>"",D3<>"",E3<>"",F3<>"",G3<>"",H3<>"") -> TRUE | K3: Bus/Comm | L3: Adult and Community Education Center | N3: =IF((AND(IF($E3="Bus/Comm",1,0),OR(IF($A3="Member",1,0),IF($A3="New",1,0)))),1,0) -> 0 | O3: =IF((AND(IF($E3="Parent",1,0),OR(IF($A3="Member",1,0),IF($A3="New",1,0)))),1,0) -> 0 | P3: =IF((AND(IF($E3="Principal",1,0),OR(IF($A3="Member",1,0),IF($A3="New",1,0)))),1,0) -> 1 | Q3: =IF((AND(IF($E3="Student",1,0),OR(IF($A3="Member",1,0),IF($A3="New",1,0)))),1,0) -> 0 | R3: =IF((AND(IF($E3="Support",1,0),OR(IF($A3="Member",1,0),IF($A3="New",1,0)))),1,0) -> 0 | S3: =IF((AND(IF($E3="Teacher",1,0),OR(IF($A3="Member",1,0),IF($A3="New",1,0)))),1,0) -> 0 | T3: =IF((AND(IF($E3="Other",1,0),OR(IF($A3="Member",1,0),IF($A3="New",1,0)))),1,0) -> 0 | U3: =IF((AND(IF($F3="Black",1,0),OR(IF($A3="Member",1,0),IF($A3="New",1,0)))),1,0) -> 0 | V3: =IF((AND(IF($F3="White",1,0),OR(IF($A3="Member",1,0),IF($A3="New",1,0)))),1,0) -> 1 | W3: =IF((AND(IF($F3="Other",1,0),OR(IF($A3="Member",1,0),IF($A3="New",1,0)))),1,0) -> 0
A4: Member | C4: Amanda | D4: Mills | E4: Teacher | F4: White | G4: Yes | H4: Yes | I4: =OR(AND(E4="Parent",G4="No",H4="Yes"),AND(E4="Teacher",G4="Yes",H4="Yes"),AND(E4="Support",G4="Yes",H4="Yes"),AND(E4="Student",H4="Yes",G4="N/A",H4="Yes"),AND(E4="Bus/Comm",G4="No",H4="No"),AND(E4="Principal",G4="Yes",H4="No"),AND(E4="Other")) -> TRUE | J4: =AND(A4<>"",C4<>"",D4<>"",E4<>"",F4<>"",G4<>"",H4<>"") -> TRUE | K4: Parent | L4: Apalachee | N4: =IF((AND(IF($E4="Bus/Comm",1,0),OR(IF($A4="Member",1,0),IF($A4="New",1,0)))),1,0) -> 0 | O4: =IF((AND(IF($E4="Parent",1,0),OR(IF($A4="Member",1,0),IF($A4="New",1,0)))),1,0) -> 0 | P4: =IF((AND(IF($E4="Principal",1,0),OR(IF($A4="Member",1,0),IF($A4="New",1,0)))),1,0) -> 0 | Q4: =IF((AND(IF($E4="Student",1,0),OR(IF($A4="Member",1,0),IF($A4="New",1,0)))),1,0) -> 0 | R4: =IF((AND(IF($E4="Support",1,0),OR(IF($A4="Member",1,0),IF($A4="New",1,0)))),1,0) -> 0 | S4: =IF((AND(IF($E4="Teacher",1,0),OR(IF($A4="Member",1,0),IF($A4="New",1,0)))),1,0) -> 1 | T4: =IF((AND(IF($E4="Other",1,0),OR(IF($A4="Member",1,0),IF($A4="New",1,0)))),1,0) -> 0 | U4: =IF((AND(IF($F4="Black",1,0),OR(IF($A4="Member",1,0),IF($A4="New",1,0)))),1,0) -> 0 | V4: =IF((AND(IF($F4="White",1,0),OR(IF($A4="Member",1,0),IF($A4="New",1,0)))),1,0) -> 1 | W4: =IF((AND(IF($F4="Other",1,0),OR(IF($A4="Member",1,0),IF($A4="New",1,0)))),1,0) -> 0
A5: Member | C5: Gregory | D5: Williams | E5: Parent | F5: Black | G5: No | H5: Yes | I5: TRUE | J5: TRUE | K5: Principal | L5: Arts and Sciences Charter, School of | N5: 0 | O5: 1 | P5: 0 | Q5: 0 | R5: 0 | S5: 0 | T5: 0 | U5: 1 | V5: 0 | W5: 0
A6: Member | C6: Marylee | D6: Hallam | E6: Bus/Comm | F6: White | G6: Yes | H6: No | I6: FALSE | J6: TRUE | K6: Student | L6: Astoria Park | N6: 1 | O6: 0 | P6: 0 | Q6: 0 | R6: 0 | S6: 0 | T6: 0 | U6: 0 | V6: 1 | W6: 0
A7: Member | C7: Shelly | D7: Hunt | E7: Parent | F7: White | G7: Yes | H7: Yes | I7: FALSE | J7: TRUE | K7: Support | L7: Bond | N7: 0 | O7: 1 | P7: 0 | Q7: 0 | R7: 0 | S7: 0 | T7: 0 | U7: 0 | V7: 1 | W7: 0
A8: Member | C8: Brandy | D8: McIntosh | E8: Parent | F8: Black | G8: Yes | H8: No | I8: FALSE | J8: TRUE | K8: Teacher | L8: Buck Lake | N8: 0 | O8: 1 | P8: 0 | Q8: 0 | R8: 0 | S8: 0 | T8: 0 | U8: 1 | V8: 0 | W8: 0
A9: Member | C9: Nancy | D9: Morgan | E9: Parent | F9: White | G9: No | H9: Yes | I9: TRUE | J9: TRUE | K9: Other | L9: Canopy Oaks | N9: 0 | O9: 1 | P9: 0 | Q9: 0 | R9: 0 | S9: 0 | T9: 0 | U9: 0 | V9: 1 | W9: 0
A10: Member | C10: Sheeja | D10: George | E10: Parent | F10: Black | G10: No | H10: Yes | I10: TRUE | J10: TRUE | K10: Black | L10: Chaires | N10: 0 | O10: 1 | P10: 0 | Q10: 0 | R10: 0 | S10: 0 | T10: 0 | U10: 1 | V10: 0 | W10: 0
A11: Member | C11: Kelli | D11: Wilson | E11: Parent | F11: Black | G11: No | H11: Yes | I11: TRUE | J11: TRUE | K11: White | L11: Chiles | N11: 0 | O11: 1 | P11: 0 | Q11: 0 | R11: 0 | S11: 0 | T11: 0 | U11: 1 | V11: 0 | W11: 0
A12: Member | C12: Jennifer | D12: Peavy | E12: Bus/Comm | F12: White | G12: No | H12: No | I12: TRUE | J12: TRUE | K12: Other | L12: Cobb | N12: 1 | O12: 0 | P12: 0 | Q12: 0 | R12: 0 | S12: 0 | T12: 0 | U12: 0 | V12: 1 | W12: 0
A13: Member | C13: Pamela | D13: Paul | E13: Support | F13: White | G13: Yes | H13: Yes | I13: TRUE | J13: TRUE | L13: Deerlake | N13: 0 | O13: 0 | P13: 0 | Q13: 0 | R13: 1 | S13: 0 | T13: 0 | U13: 0 | V13: 1 | W13: 0
A14: Member | C14: Reina | D14: Sessions | E14: Teacher | F14: Other | G14: Yes | H14: Yes | I14: TRUE | J14: TRUE | L14: Desoto Trail | N14: 0 | O14: 0 | P14: 0 | Q14: 0 | R14: 0 | S14: 1 | T14: 0 | U14: 0 | V14: 0 | W14: 1
A15: Member | C15: Colleen | D15: Hosford | E15: Teacher | F15: White | G15: Yes | H15: Yes | I15: TRUE | J15: TRUE | K15: Yes | L15: Devereux S. I. P. P. | N15: 0 | O15: 0 | P15: 0 | Q15: 0 | R15: 0 | S15: 1 | T15: 0 | U15: 0 | V15: 1 | W15: 0
A16: Member | C16: Caroline | D16: Simpkins | E16: Teacher | F16: White | G16: Yes | H16: Yes | I16: TRUE | J16: TRUE | K16: No | L16: Disc Village | N16: 0 | O16: 0 | P16: 0 | Q16: 0 | R16: 0 | S16: 1 | T16: 0 | U16: 0 | V16: 1 | W16: 0
A17: Member | C17: Lauren | D17: Pierce | E17: Bus/Comm | F17: White | G17: No | H17: No | I17: TRUE | J17: TRUE | K17: N/A | L17: Everhart | N17: 1 | O17: 0 | P17: 0 | Q17: 0 | R17: 0 | S17: 0 | T17: 0 | U17: 0 | V17: 1 | W17: 0
A18: Member | C18: Selika | D18: Sampson | E18: Parent | F18: Black | G18: No | H18: Yes | I18: =OR(AND(E18="Parent",G18="No",H18="Yes"),AND(E18="Teacher",G18="Yes",H18="Yes"),AND(E18="Support",G18="Yes",H18="Yes"),AND(E18="Student",H18="Yes",G18="N/A",H18="Yes"),AND(E18="Bus/Comm",G18="No",H18="No"),AND(E18="Principal",G18="Yes",H18="No"),AND(E18="Other")) -> TRUE | J18: =AND(A18<>"",C18<>"",D18<>"",E18<>"",F18<>"",G18<>"",H18<>"") -> TRUE | L18: Fairview | N18: =IF((AND(IF($E18="Bus/Comm",1,0),OR(IF($A18="Member",1,0),IF($A18="New",1,0)))),1,0) -> 0 | O18: =IF((AND(IF($E18="Parent",1,0),OR(IF($A18="Member",1,0),IF($A18="New",1,0)))),1,0) -> 1 | P18: =IF((AND(IF($E18="Principal",1,0),OR(IF($A18="Member",1,0),IF($A18="New",1,0)))),1,0) -> 0 | Q18: =IF((AND(IF($E18="Student",1,0),OR(IF($A18="Member",1,0),IF($A18="New",1,0)))),1,0) -> 0 | R18: =IF((AND(IF($E18="Support",1,0),OR(IF($A18="Member",1,0),IF($A18="New",1,0)))),1,0) -> 0 | S18: =IF((AND(IF($E18="Teacher",1,0),OR(IF($A18="Member",1,0),IF($A18="New",1,0)))),1,0) -> 0 | T18: =IF((AND(IF($E18="Other",1,0),OR(IF($A18="Member",1,0),IF($A18="New",1,0)))),1,0) -> 0 | U18: =IF((AND(IF($F18="Black",1,0),OR(IF($A18="Member",1,0),IF($A18="New",1,0)))),1,0) -> 1 | V18: =IF((AND(IF($F18="White",1,0),OR(IF($A18="Member",1,0),IF($A18="New",1,0)))),1,0) -> 0 | W18: =IF((AND(IF($F18="Other",1,0),OR(IF($A18="Member",1,0),IF($A18="New",1,0)))),1,0) -> 0
A19: Member | C19: Corine | D19: Stancil | E19: Parent | F19: Black | G19: No | H19: Yes | I19: TRUE | J19: TRUE | L19: Ft. Braden K-8 | N19: 0 | O19: 1 | P19: 0 | Q19: 0 | R19: 0 | S19: 0 | T19: 0 | U19: 1 | V19: 0 | W19: 0
A20: Member | C20: Jamie | D20: Steed | E20: Parent | F20: Black | G20: No | H20: No | I20: FALSE | J20: TRUE | K20: Member | L20: Ghazvini | N20: 0 | O20: 1 | P20: 0 | Q20: 0 | R20: 0 | S20: 0 | T20: 0 | U20: 1 | V20: 0 | W20: 0
A21: Member | C21: Ckrystal | D21: Stokes | E21: Parent | F21: Black | G21: No | H21: No | I21: FALSE | J21: TRUE | K21: Absence | L21: Gilchrist | N21: 0 | O21: 1 | P21: 0 | Q21: 0 | R21: 0 | S21: 0 | T21: 0 | U21: 1 | V21: 0 | W21: 0
A22: Member | I22: FALSE | J22: FALSE | K22: Other | L22: Godby | N22: 0 | O22: 0 | P22: 0 | Q22: 0 | R22: 0 | S22: 0 | T22: 0 | U22: 0 | V22: 0 | W22: 0
A23: Member | I23: FALSE | J23: FALSE | K23: New | L23: Griffin | N23: 0 | O23: 0 | P23: 0 | Q23: 0 | R23: 0 | S23: 0 | T23: 0 | U23: 0 | V23: 0 | W23: 0
A24: Member | I24: FALSE | J24: FALSE | L24: Hartsfield | N24: 0 | O24: 0 | P24: 0 | Q24: 0 | R24: 0 | S24: 0 | T24: 0 | U24: 0 | V24: 0 | W24: 0
A25: Member | I25: FALSE | J25: FALSE | L25: Hawks Rise | N25: 0 | O25: 0 | P25: 0 | Q25: 0 | R25: 0 | S25: 0 | T25: 0 | U25: 0 | V25: 0 | W25: 0
A26: Member | I26: FALSE | J26: FALSE | L26: Imagine School at Evening Rose Charter | N26: 0 | O26: 0 | P26: 0 | Q26: 0 | R26: 0 | S26: 0 | T26: 0 | U26: 0 | V26: 0 | W26: 0
A27: Member | I27: FALSE | J27: FALSE | L27: JDC and Sawmill Academy | N27: 0 | O27: 0 | P27: 0 | Q27: 0 | R27: 0 | S27: 0 | T27: 0 | U27: 0 | V27: 0 | W27: 0
A28: Member | I28: FALSE | J28: FALSE | L28: Killearn Lakes | N28: 0 | O28: 0 | P28: 0 | Q28: 0 | R28: 0 | S28: 0 | T28: 0 | U28: 0 | V28: 0 | W28: 0
A29: Member | I29: FALSE | J29: FALSE | L29: Leon | N29: 0 | O29: 0 | P29: 0 | Q29: 0 | R29: 0 | S29: 0 | T29: 0 | U29: 0 | V29: 0 | W29: 0
A30: Member | I30: FALSE | J30: FALSE | L30: Lincoln | N30: 0 | O30: 0 | P30: 0 | Q30: 0 | R30: 0 | S30: 0 | T30: 0 | U30: 0 | V30: 0 | W30: 0
A31: Member | I31: FALSE | J31: FALSE | L31: Lively Technical | N31: 0 | O31: 0 | P31: 0 | Q31: 0 | R31: 0 | S31: 0 | T31: 0 | U31: 0 | V31: 0 | W31: 0
A32: Member | I32: FALSE | J32: FALSE | L32: Marine Institute | N32: 0 | O32: 0 | P32: 0 | Q32: 0 | R32: 0 | S32: 0 | T32: 0 | U32: 0 | V32: 0 | W32: 0
A33: Member | I33: FALSE | J33: FALSE | L33: Moore | N33: 0 | O33: 0 | P33: 0 | Q33: 0 | R33: 0 | S33: 0 | T33: 0 | U33: 0 | V33: 0 | W33: 0
A34: Member | I34: FALSE | J34: FALSE | L34: Nims | N34: 0 | O34: 0 | P34: 0 | Q34: 0 | R34: 0 | S34: 0 | T34: 0 | U34: 0 | V34: 0 | W34: 0
A35: Member | I35: FALSE | J35: FALSE | L35: Oak Ridge | N35: 0 | O35: 0 | P35: 0 | Q35: 0 | R35: 0 | S35: 0 | T35: 0 | U35: 0 | V35: 0 | W35: 0
A36: Member | I36: FALSE | J36: FALSE | L36: PACE for Girls | N36: 0 | O36: 0 | P36: 0 | Q36: 0 | R36: 0 | S36: 0 | T36: 0 | U36: 0 | V36: 0 | W36: 0
A37: Member | I37: FALSE | J37: FALSE | L37: PACE Secondary | N37: 0 | O37: 0 | P37: 0 | Q37: 0 | R37: 0 | S37: 0 | T37: 0 | U37: 0 | V37: 0 | W37: 0
A38: Member | I38: FALSE | J38: FALSE | L38: Pineview | N38: 0 | O38: 0 | P38: 0 | Q38: 0 | R38: 0 | S38: 0 | T38: 0 | U38: 0 | V38: 0 | W38: 0
A39: Member | I39: FALSE | J39: FALSE | L39: Raa | N39: 0 | O39: 0 | P39: 0 | Q39: 0 | R39: 0 | S39: 0 | T39: 0 | U39: 0 | V39: 0 | W39: 0
A40: Member | I40: FALSE | J40: FALSE | L40: Rickards | N40: 0 | O40: 0 | P40: 0 | Q40: 0 | R40: 0 | S40: 0 | T40: 0 | U40: 0 | V40: 0 | W40: 0
A41: Member | I41: FALSE | J41: FALSE | L41: Riley | N41: 0 | O41: 0 | P41: 0 | Q41: 0 | R41: 0 | S41: 0 | T41: 0 | U41: 0 | V41: 0 | W41: 0
A42: Member | I42: FALSE | J42: FALSE | L42: Roberts | N42: 0 | O42: 0 | P42: 0 | Q42: 0 | R42: 0 | S42: 0 | T42: 0 | U42: 0 | V42: 0 | W42: 0
A43: Member | I43: FALSE | J43: FALSE | L43: Ruediger | N43: 0 | O43: 0 | P43: 0 | Q43: 0 | R43: 0 | S43: 0 | T43: 0 | U43: 0 | V43: 0 | W43: 0
A44: Member | I44: FALSE | J44: FALSE | L44: Sabal Palm | N44: 0 | O44: 0 | P44: 0 | Q44: 0 | R44: 0 | S44: 0 | T44: 0 | U44: 0 | V44: 0 | W44: 0
A45: Member | I45: FALSE | J45: FALSE | L45: SAIL | N45: 0 | O45: 0 | P45: 0 | Q45: 0 | R45: 0 | S45: 0 | T45: 0 | U45: 0 | V45: 0 | W45: 0
A46: Member | I46: FALSE | J46: FALSE | L46: Sealey | N46: 0 | O46: 0 | P46: 0 | Q46: 0 | R46: 0 | S46: 0 | T46: 0 | U46: 0 | V46: 0 | W46: 0
A47: Member | I47: FALSE | J47: FALSE | L47: Seminole Work and Learn | N47: 0 | O47: 0 | P47: 0 | Q47: 0 | R47: 0 | S47: 0 | T47: 0 | U47: 0 | V47: 0 | W47: 0
A48: Member | I48: FALSE | J48: FALSE | L48: Springwood | N48: 0 | O48: 0 | P48: 0 | Q48: 0 | R48: 0 | S48: 0 | T48: 0 | U48: 0 | V48: 0 | W48: 0
A49: Member | I49: FALSE | J49: FALSE | L49: STARS Charter | N49: 0 | O49: 0 | P49: 0 | Q49: 0 | R49: 0 | S49: 0 | T49: 0 | U49: 0 | V49: 0 | W49: 0
A50: Member | I50: FALSE | J50: FALSE | L50: Steele/Collins Charter | N50: 0 | O50: 0 | P50: 0 | Q50: 0 | R50: 0 | S50: 0 | T50: 0 | U50: 0 | V50: 0 | W50: 0
A51: Member | I51: FALSE | J51: FALSE | L51: Success Academy (6-12) | N51: 0 | O51: 0 | P51: 0 | Q51: 0 | R51: 0 | S51: 0 | T51: 0 | U51: 0 | V51: 0 | W51: 0
A52: Member | I52: FALSE | J52: FALSE | L52: Sullivan | N52: 0 | O52: 0 | P52: 0 | Q52: 0 | R52: 0 | S52: 0 | T52: 0 | U52: 0 | V52: 0 | W52: 0
D53: Business/Community Members | E53: =N53 -> 3 | F53: =IF(E53>=2,"YES","NO") -> YES | L53: Swift Creek | N53: =SUM(N3:N52) -> 3 | O53: =SUM(O3:O52) -> 10 | P53: 1 | Q53: 0 | R53: 1 | S53: 4 | T53: 0 | U53: =SUM(U3:U52) -> 8 | V53: =SUM(V3:V52) -> 10 | W53: =SUM(W3:W52) -> 1
D54: Parents | E54: =O53 -> 10 | F54: =IF(E54>=4,"YES","NO") -> YES | L54: Virtual School
D55: Principal | E55: =P53 -> 1 | F55: =IF(E55=1,"YES","NO") -> YES | L55: Woodville
D56: Students | E56: =Q53 -> 0 | F56: =IF(E56>=1,"YES","NO") -> NO
D57: Support Staff | E57: =R53 -> 1 | F57: =IF(E57>=1,"YES","NO") -> YES
D58: Teachers | E58: =S53 -> 4 | F58: =IF(E58>=1,"YES","NO") -> YES
D59: Other | E59: =T53 -> 0
D60: TOTAL* | E60: =E53+E54+E55+E57+E58 -> 19
D61: % not employed at the school* | E61: =(E53+E54)/(E60+0.0001) -> 0.6842069252 | F61: =IF(E61>0.5,"YES","NO") -> YES
D62: * Students not counted
D64: Black | E64: =U53 -> 8 | F64: =E64/SUM((E$64:E$66)+0.0001) -> 0.9999875002
D65: White | E65: =V53 -> 10 | F65: =E65/SUM((E$64:E$66)+0.0001) -> 0.9999900001
D66: Other | E66: =W53 -> 1 | F66: =E66/SUM((E$64:E$66)+0.0001) -> 0.99990001

Sheet SAC Assurances
A1: ='SAC Membership List'!$C$1 -> 0 | D1: School Advisory Council | I1: YES
A2: ASSURANCES | I2: NO
B3: INITIAL SAC MEMBERSHIP REPORT
I4: N/A
I5: INITIAL SAC MEMBERSHIP REPORT
B6: Group | C6: Number | D6: Percent | E6: Group | F6: Number | G6: Percent | I6: MIDYEAR SAC MEMBERSHIP REVIEW- NO CHANGES
B7: Business/Community | C7: ='SAC Membership List'!$E$53 -> 3 | D7: =C7/($C$7+$C$8+$C$9+$F$7+$F$8+$F$9+0.0001) -> 0.1578939058 | E7: Teacher | F7: ='SAC Membership List'!$E$58 -> 4 | G7: =F7/($C$7+$C$8+$C$9+$F$7+$F$8+$F$9+0.0001) -> 0.2105252078 | I7: MIDYEAR SAC MEMBERSHIP REVIEW- Changed Membership
B8: Parent | C8: ='SAC Membership List'!$E$54 -> 10 | D8: =C8/($C$7+$C$8+$C$9+$F$7+$F$8+$F$9+0.0001) -> 0.5263130194 | E8: Support | F8: ='SAC Membership List'!$E$57 -> 1 | G8: =F8/($C$7+$C$8+$C$9+$F$7+$F$8+$F$9+0.0001) -> 0.05263130194
B9: Student | C9: ='SAC Membership List'!$E$56 -> 0 | D9: =C9/($C$7+$C$8+$C$9+$F$7+$F$8+$F$9+0.0001) -> 0 | E9: Principal | F9: ='SAC Membership List'!$E$55 -> 1 | G9: =F9/($C$7+$C$8+$C$9+$F$7+$F$8+$F$9+0.0001) -> 0.05263130194
B11: Percent SAC members not employed by the district excluding students: | G11: =(C7+C8)/(C7+C8+F7+F8+F9+0.0001) -> 0.6842069252
B13: Racial/ | C13: Students | D13: Students | E13: SAC | F13: SAC
B14: Ethnic | C14: In School | D14: In School | E14: Members | F14: Members
B15: Composition | C15: (Number) | D15: (Percent) | E15: (Number) | F15: (Percent)
B16: Black | D16: =C16/$C$19 -> 0 | E16: ='SAC Membership List'!$E$64 -> 8 | F16: =E16/$E$19 -> 0.4210504155
B17: White | D17: =C17/$C$19 -> 0 | E17: ='SAC Membership List'!E65 -> 10 | F17: =E17/$E$19 -> 0.5263130194
B18: Other | D18: =C18/$C$19 -> 0 | E18: ='SAC Membership List'!E66 -> 1 | F18: =E18/$E$19 -> 0.05263130194
B19: Total | C19: =SUM(C16:C18)+0.0001 -> 0.0001 | D19: =IF(C19>0.5,C19/$C$19,0) -> 0 | E19: =SUM($E$16:$E$18)+0.0001 -> 19.0001 | F19: =IF(E19>0.5,(E19/$E$19),0) -> 1
A21: YES | B21: Is the Principal a SAC member? (The Principal is appointed to the SAC by law.)
A22: YES | B22: Is there a balanced number of teachers? The SAC shall be a balanced group composed of the principal, teachers, parents, support staff, and students, and business/community representatives.
A23: YES | B23: Were all teachers elected by teachers?
A24: YES | B24: Is there least one non-instructional support person?
A25: YES | B25: Were all non-instructional support persons elected by non-instructional support staff?
A26: YES | B26: Are there at least four parents not employed by the school (not required at Adult or Vocational levels)?
A27: YES | B27: Were all parents elected by parents?
A28: YES | B28: Are there at least two appointed business/community representatives that are not LCS employees other than the four parents referrenced above?
A29: N/A | B29: Is there at least one student (High School, Adult and Vocational levels only)?
A30: N/A | B30: Were all students elected by students?
A31: YES | B31: Is the majority (over 50%) of the SAC membership not employed by the school DISTRICT? (Students are not part of this calculation.)
A32: YES | B32: Is the majority of the SAC membership of the same ethnic, racial and socioeconomic composition as the community served by the school?
A33: YES | B33: If the SAC members are not representative of the composition of the community, have you documented attempts to recruit members?
A35: If your school (1) conducted properly held elections and (2) your SAC members are representative of the composition of the community served, then sign the assurances below, If not, contact Gillian Gregory immediately.
A37: We assure the Superintendent and the School Board that (1) our school conducted properly held elections and that (2) our School Advisory Council is representative of the socioeconomic composition of our school and that we maintain records to that effect in our school.
A40: Principal Signature:
A43: SAC Chair Signature:
A45: SAC Chair Name:
A47: SAC Chair E-mail:
